bitfinex/quotes_SOLUSD_20241001
["timestamp","ask_amount","ask_price","bid_price","bid_amount"]
[1727814000749,6.9643,143.59,143.56,17.4135]
[1727814000955,20.0,143.62,143.5,22.7447]
[1727814001260,20.0,143.62,143.52,6.9675]
[1727814001454,20.0,143.62,143.55,6.9661]
[1727814001749,6.9628,143.62,143.58,6.9644]
[1727814001954,20.0,143.65,143.52,98.32584917]
[1727814002161,20.0,143.63,143.54,24.3826]
[1727814002353,6.9646,143.59,143.55,6.966]
[1727814002567,17.4051,143.64,143.56,17.4138]
[1727814002568,6.9636,143.61,143.56,17.4138]
[1727814002757,17.4051,143.64,143.59,6.9638]
[1727814002758,6.962,143.64,143.59,6.9638]
[1727814002958,17.76480927,143.71,143.6,1.39252799]
[1727814002959,1.77147617,143.71,143.6,1.39252799]
[1727814003281,1.77147617,143.71,143.6,24.3724]
[1727814003282,6.9619,143.64,143.6,24.3724]
[1727814003458,6.9619,143.64,143.6,17.4088]
[1727814003652,6.9649,143.58,143.54,24.3824]
[1727814003866,6.1886,143.7,143.53,15.3345]
[1727814004062,17.4122,143.58,143.53,15.3345]
[1727814004302,20.0,143.55,143.48,0.318448]
[1727814004461,6.9691,143.49,143.48,0.318448]
[1727814005158,26.9691,143.49,143.48,0.318448]
[1727814006576,50.745984,143.49,143.48,0.318448]
[1727814006771,26.9691,143.49,143.48,0.318448]
[1727814007270,50.745984,143.49,143.48,0.318448]
[1727814008196,26.9691,143.49,143.48,0.318448]
[1727814009169,50.745984,143.49,143.48,0.318448]
[1727814009481,26.9691,143.49,143.48,0.318448]
[1727814011299,6.9681,143.51,143.48,0.318448]
[1727814011987,17.4151,143.56,143.48,0.318448]
[1727814012172,17.4151,143.56,143.48,7.287948]
[1727814012374,58.4737,143.6,143.49,17.422]
[1727814012706,6.9656,143.57,143.52,6.9675]
[1727814013078,6.9656,143.57,143.52,22.1066]
[1727814013407,6.9656,143.57,143.52,15.1391]
[1727814013602,17.4083,143.61,143.52,15.1391]
[1727814013895,6.9633,143.61,143.53,18.81022509]
[1727814014107,6.9633,143.61,143.53,17.417]
[1727814014276,7.27354669,143.65,143.56,6.9652]
[1727814014480,7.27354669,143.65,143.57,17.412]
[1727814014699,6.9605,143.67,143.61,6.963]
[1727814014909,6.9611,143.66,143.6,24.3722]
[1727814015204,6.9604,143.67,143.61,6.9632]
[1727814015371,6.9604,143.67,143.6,17.4089]
[1727814015372,6.9599,143.68,143.63,16.416]
[1727814015794,6.9594,143.69,143.63,16.416]
[1727814015974,1.21111783,143.73,143.63,16.416]
[1727814016178,14.2285987,143.74,143.63,16.416]
[1727814016375,7.2711987,143.74,143.68,17.3997]
[1727814016622,6.9575,143.73,143.68,17.3997]
[1727814016773,42.78698077,143.79,143.64,17.4034]
[1727814016982,17.3915,143.75,143.63,16.416]
[1727814017283,60.17418077,143.79,143.64,1.39206408]
[1727814017499,6.957,143.74,143.69,17.3982]
[1727814017695,6.957,143.74,143.69,24.3574]
[1727814018002,6.9559,143.77,143.72,6.9579]
[1727814018300,1.20844427,143.82,143.64,2.0]
[1727814018301,6.955,143.78,143.73,1.39131438]
[1727814018611,6.955,143.78,143.68,63.83925946]
[1727814018612,6.955,143.78,143.72,24.3526]
[1727814018772,17.94035957,143.84,143.72,17.3947]
[1727814019110,6.9545,143.8,143.74,6.9565]
[1727814019402,6.9536,143.81,143.75,33.7535]
[1727814019709,6.9529,143.83,143.76,6.9555]
[1727814019909,6.9529,143.83,143.75,33.7535]
[1727814020075,6.9527,143.83,143.75,33.7535]
[1727814020426,6.9527,143.83,143.77,6.955]
[1727814020610,6.9527,143.83,143.77,6.9555]
[1727814020810,6.9523,143.84,143.78,6.9549]
[1727814021006,1.37759617,143.9,143.79,1.39048124]
[1727814021206,6.9512,143.86,143.8,6.954]
[1727814021415,6.9512,143.86,143.81,1.39025807]
[1727814021611,0.8185366,143.9,143.82,1.39018942]
[1727814021834,0.8185366,143.9,143.84,6.9519]
[1727814022133,0.8185366,143.9,143.85,1.38992763]
[1727814022308,0.8185366,143.9,143.87,17.3761]
[1727814022634,6.946,143.97,143.86,79.57055946]
[1727814022931,17.3617,144.0,143.86,15.7313]
[1727814023227,0.55905957,144.02,143.86,15.7313]
[1727814023228,17.3649,143.97,143.86,15.7313]
[1727814023834,34.7293,143.98,143.86,15.7313]
[1727814023835,6.9502,143.88,143.86,15.7313]
[1727814024017,17.3686,143.94,143.86,15.7313]
[1727814024519,23.776884,143.93,143.86,15.7313]
[1727814024708,20.0,143.92,143.86,15.7313]
[1727814025213,6.9492,143.9,143.86,15.7313]
[1727814025417,6.9503,143.88,143.86,15.7313]
[1727814025624,6.9498,143.89,143.86,15.7313]
[1727814025830,6.9497,143.9,143.86,15.7313]
[1727814026031,23.776884,143.96,143.86,15.7313]
[1727814026237,6.9513,143.86,143.78,6.4801]
[1727814026433,6.9517,143.85,143.78,13.4351]
[1727814026731,6.9497,143.89,143.8,17.3849]
[1727814026922,34.7293,143.98,143.81,6.9536]
[1727814027127,20.0,143.97,143.81,6.9536]
[1727814027333,6.91988,143.88,143.79,17.3854]
[1727814027520,6.91988,143.88,143.83,6.9526]
[1727814027831,6.9507,143.87,143.82,17.382]
[1727814028012,6.9507,143.87,143.82,24.3351]
[1727814028432,20.55905957,143.97,143.83,1.39022406]
[1727814028617,20.0,143.91,143.86,6.9511]
[1727814028936,0.55905957,143.97,143.85,17.3785]
[1727814029640,0.55905957,143.97,143.86,6.9507]
[1727814029847,0.55905957,143.97,143.81,34.7667]
[1727814029848,0.55905957,144.01,143.83,6.9526]
[1727814030140,0.55905957,144.01,143.78,13.4351]
[1727814030141,52.0,143.98,143.78,13.4351]
[1727814030444,2.0,143.96,143.78,13.4346]
[1727814030639,9.0183331,143.96,143.79,1.39059074]
[1727814030818,9.0183331,143.96,143.78,6.4801]
[1727814030819,9.0183331,143.96,143.8,17.385]
[1727814031025,20.0,143.93,143.8,17.385]
[1727814031327,20.0,143.89,143.76,33.7875]
[1727814031658,20.0,143.89,143.76,16.3986]
[1727814031659,20.0,143.85,143.76,16.3986]
[1727814031846,20.0,143.83,143.76,16.3986]
[1727814032137,20.0,143.81,143.72,6.9578]
[1727814032523,20.0,143.81,143.72,17.3948]
[1727814032732,9.0183331,143.89,143.73,1.39106931]
[1727814032733,17.3792,143.85,143.73,1.39106931]
[1727814032924,6.9542,143.8,143.75,6.9564]
[1727814033629,35.30925957,143.89,143.7,79.00185946]
[1727814033842,6.9526,143.84,143.78,6.955]
[1727814034140,20.0,143.87,143.76,24.3447]
[1727814034344,6.9539,143.81,143.76,24.3447]
[1727814034520,6.9531,143.82,143.77,6.9554]
[1727814034923,6.9526,143.83,143.76,17.3889]
[1727814035147,20.0,143.87,143.73,17.3934]
[1727814035331,35.30925957,143.89,143.73,17.3934]
[1727814035332,17.3817,143.83,143.73,17.3934]
[1727814035530,6.9536,143.81,143.75,6.9564]
[1727814035933,6.9535,143.82,143.75,24.3461]
[1727814036154,6.9527,143.83,143.75,17.3901]
[1727814036331,6.9527,143.83,143.78,6.9546]
[1727814036752,6.9522,143.84,143.79,6.9545]
[1727814037129,6.9507,143.87,143.82,6.953]
[1727814037328,6.9501,143.89,143.82,17.3825]
[1727814037542,6.67985957,143.97,143.83,1.39013783]
[1727814037855,17.3704,143.93,143.82,17.3825]
[1727814038151,6.67985957,143.97,143.84,17.3793]
[1727814038349,6.67985957,143.97,143.83,16.78263787]
[1727814038350,34.7214,144.01,143.85,1.38987909]
[1727814038532,34.7214,144.01,143.89,6.9496]
[1727814038533,6.9473,143.94,143.89,6.9496]
[1727814038730,6.947,143.95,143.9,8.33877546]
[1727814039131,6.947,143.95,143.88,17.3745]
[1727814039132,17.3657,143.97,143.85,17.379]
[1727814039339,6.9491,143.91,143.85,24.3303]
[1727814039540,6.9491,143.91,143.83,15.3925]
[1727814039541,17.3657,143.97,143.83,15.3925]
[1727814039753,6.9467,143.96,143.9,6.9492]
[1727814039961,17.3613,144.0,143.89,17.3735]
[1727814040173,6.9478,143.93,143.89,17.3735]
[1727814040337,17.3645,143.98,143.87,6.9507]
[1727814040645,6.9478,143.93,143.88,8.33981252]
[1727814041159,6.9486,143.92,143.87,6.9507]
[1727814041331,6.9478,143.93,143.88,6.9502]
[1727814042040,20.0,143.93,143.83,15.3925]
[1727814042243,20.0,143.91,143.83,15.3925]
[1727814042451,6.9527,143.83,143.79,17.3859]
[1727814042753,6.9522,143.84,143.79,24.3404]
[1727814043062,6.9502,143.88,143.83,6.9523]
[1727814043352,6.9517,143.85,143.81,6.9532]
[1727814043570,34.74,143.93,143.79,17.3861]
[1727814043745,6.9527,143.83,143.79,17.3861]
[1727814044241,6.9522,143.84,143.79,17.3861]
[1727814044559,6.9531,143.82,143.78,6.4373]
[1727814044760,20.0,143.87,143.78,6.4373]
[1727814045057,6.9545,143.8,143.76,33.8739]
[1727814045239,34.7493,143.89,143.76,16.4843]
[1727814045240,20.0,143.83,143.76,16.4843]
[1727814046056,6.9555,143.77,143.76,16.4843]
[1727814046262,6.9555,143.77,143.72,6.9579]
[1727814046437,20.0,143.81,143.69,15.1792]
[1727814046640,20.0,143.77,143.69,15.1792]
[1727814047353,6.9569,143.75,143.69,22.1382]
[1727814047559,6.9572,143.74,143.69,22.1382]
[1727814047772,20.0,143.77,143.69,15.1792]
[1727814048057,6.9579,143.73,143.69,15.1792]
[1727814048232,6.9573,143.74,143.69,15.1792]
[1727814048430,6.9574,143.73,143.69,15.1792]
[1727814048648,6.9571,143.74,143.69,22.1384]
[1727814048844,20.0,143.77,143.69,22.1385]
[1727814049040,6.956,143.76,143.71,6.9583]
[1727814049248,52.1536,143.81,143.71,6.9583]
[1727814049456,6.9565,143.75,143.71,6.9583]
[1727814049663,43.776884,143.8,143.69,15.1792]
[1727814049958,6.958,143.72,143.69,15.1792]
[1727814050135,43.776884,143.8,143.69,15.1792]
[1727814050136,17.3898,143.77,143.69,15.1792]
[1727814050330,17.3898,143.77,143.66,17.4017]
[1727814050552,20.0,143.76,143.66,24.3623]
[1727814050743,20.0,143.74,143.63,32.839]
[1727814050948,20.0,143.72,143.63,15.4334]
[1727814051152,6.9613,143.66,143.63,15.4334]
[1727814051354,17.3977,143.7,143.63,15.4334]
[1727814051557,6.9615,143.65,143.63,15.4334]
[1727814052155,17.3977,143.7,143.63,15.4334]
[1727814052362,6.9608,143.67,143.63,15.4334]
[1727814052553,20.0,143.72,143.64,1.39213248]
[1727814052757,6.9599,143.68,143.63,22.3956]
[1727814052958,17.3935,143.74,143.64,6.9618]
[1727814052959,20.0,143.73,143.64,6.9618]
[1727814053153,6.9604,143.67,143.63,15.4334]
[1727814053339,6.96,143.68,143.63,22.3956]
[1727814053544,6.9614,143.65,143.63,15.4334]
[1727814053949,6.9609,143.66,143.63,15.4334]
[1727814054176,6.9609,143.66,143.63,16.8256272]
[1727814054364,17.3985,143.7,143.63,15.4334]
[1727814054671,20.0,143.69,143.63,15.4334]
[1727814054846,20.0,143.69,143.61,17.4072]
[1727814055041,6.9599,143.68,143.63,6.9618]
[1727814055463,37.396,143.72,143.64,1.39202391]
[1727814055464,6.9604,143.67,143.64,1.39202391]
[1727814055668,6.9619,143.64,143.59,6.9642]
[1727814056350,17.4005,143.68,143.58,24.3763]
[1727814056666,23.776884,143.69,143.57,15.0159]
[1727814056667,6.9647,143.58,143.57,15.0159]
[1727814056879,6.9657,143.56,143.54,0.8185366]
[1727814057068,20.0,143.62,143.54,0.8185366]
[1727814057295,6.9662,143.55,143.54,0.8185366]
[1727814057872,50.743084,143.55,143.54,0.8185366]
[1727814058681,26.9662,143.55,143.54,0.8185366]
[1727814059180,20.0,143.6,143.54,0.8185366]
[1727814059486,6.9662,143.55,143.54,0.8185366]
[1727814059782,26.9662,143.55,143.54,0.8185366]
[1727814060180,23.776884,143.6,143.54,0.8185366]
[1727814060362,20.0,143.59,143.54,0.8185366]
[1727814060562,6.9662,143.55,143.54,0.8185366]
[1727814060887,6.966,143.56,143.54,0.8185366]
[1727814061179,6.9662,143.55,143.54,0.8185366]
[1727814061362,20.0,143.59,143.54,0.8185366]
[1727814061561,6.9647,143.58,143.54,0.8185366]
[1727814061757,0.55905957,143.68,143.58,6.9647]
[1727814061986,17.4025,143.66,143.55,17.4145]
[1727814062190,6.9647,143.58,143.54,7.7851366]
[1727814062486,6.9653,143.57,143.54,0.8185366]
[1727814062681,17.4081,143.62,143.54,0.8185366]
[1727814062865,34.8077,143.65,143.54,0.8185366]
[1727814062866,6.9662,143.55,143.54,0.8185366]
[1727814063864,26.9662,143.55,143.54,0.8185366]
[1727814065173,50.743084,143.55,143.54,0.8185366]
[1727814066188,50.743084,143.55,143.54,3.66e-05]
[1727814067579,26.9662,143.55,143.54,3.66e-05]
[1727814067780,6.9662,143.55,143.54,3.66e-05]
[1727814068104,0.55905957,143.6,143.54,3.66e-05]
[1727814068284,6.9652,143.58,143.54,3.66e-05]
[1727814068476,17.4085,143.61,143.54,3.66e-05]
[1727814068674,6.9662,143.55,143.54,3.66e-05]
[1727814070505,50.743084,143.55,143.54,3.66e-05]
[1727814071009,26.9662,143.55,143.54,3.66e-05]
[1727814071302,6.4216,143.63,143.54,3.66e-05]
[1727814071476,6.9648,143.58,143.54,6.9666366]
[1727814071678,6.9648,143.58,143.54,3.66e-05]
[1727814071874,6.9639,143.6,143.55,6.9661]
[1727814072112,34.8077,143.65,143.54,3.66e-05]
[1727814072477,6.9646,143.59,143.54,6.9666366]
[1727814072678,6.9648,143.58,143.54,3.66e-05]
[1727814073288,6.9662,143.55,143.54,3.66e-05]
[1727814076308,50.743084,143.55,143.54,3.66e-05]
[1727814076493,6.9691,143.49,143.44,0.2148106]
[1727814076721,26.9691,143.49,143.44,0.2148106]
[1727814077382,50.745984,143.49,143.44,0.2148106]
[1727814077614,26.9691,143.49,143.44,0.2148106]
[1727814080492,50.745984,143.49,143.48,4.8e-05]
[1727814080880,50.745984,143.49,143.44,0.2148106]
[1727814080881,50.747884,143.45,143.44,0.2148106]
[1727814081077,26.971,143.45,143.44,0.2148106]
[1727814081905,6.971,143.45,143.44,0.2148106]
[1727814082306,1.21296543,143.52,143.44,0.2148106]
[1727814082631,6.971,143.45,143.44,0.2148106]
[1727814082906,6.9706,143.46,143.44,0.2148106]
[1727814083306,6.971,143.45,143.44,0.2148106]
[1727814083604,1.21296543,143.52,143.44,0.2148106]
[1727814083799,6.971,143.45,143.44,0.2148106]
[1727814084903,50.747884,143.45,143.44,0.2148106]
[1727814085084,26.971,143.45,143.44,0.2148106]
[1727814085392,50.747884,143.45,143.44,0.2148106]
[1727814085797,50.747884,143.45,143.44,1.06e-05]
[1727814086185,26.971,143.45,143.44,1.06e-05]
[1727814087014,26.6625,143.4,143.25,2.8185366]
[1727814087308,20.0,143.39,143.27,16.3366]
[1727814087509,6.9778,143.32,143.27,33.785]
[1727814087693,20.0,143.37,143.27,33.785]
[1727814087892,20.0,143.37,143.3,6.9781]
[1727814087893,6.9755,143.36,143.3,6.9781]
[1727814088100,20.0,143.37,143.3,6.9781]
[1727814088425,20.0,143.38,143.3,17.4459]
[1727814088594,6.9763,143.35,143.3,17.4459]
[1727814088789,6.9761,143.35,143.3,17.4459]
[1727814088994,20.0,143.4,143.3,17.4459]
[1727814089197,6.9759,143.36,143.3,24.4242]
[1727814089694,20.0,143.4,143.3,24.4242]
[1727814089896,6.9756,143.36,143.31,6.9778]
[1727814090305,6.9756,143.36,143.3,24.424]
[1727814090612,6.9749,143.38,143.33,6.9768]
[1727814090991,6.975,143.37,143.31,6.9774]
[1727814091317,6.975,143.37,143.32,6.9771]
[1727814091611,6.974,143.39,143.34,6.9763]
[1727814091809,6.9764,143.34,143.29,6.9788]
[1727814092024,6.9764,143.34,143.3,6.9783]
[1727814092714,6.976,143.35,143.3,6.9783]
[1727814093014,20.0,143.37,143.29,17.447]
[1727814093318,17.4371,143.38,143.29,17.447]
[1727814093319,6.9773,143.33,143.29,17.447]
[1727814093521,17.4371,143.38,143.29,24.4257]
[1727814093686,20.0,143.37,143.29,24.4257]
[1727814093895,17.4395,143.36,143.27,16.3366]
[1727814094195,20.0,143.33,143.27,16.3366]
[1727814094515,6.9787,143.3,143.27,16.3366]
[1727814094713,20.0,143.35,143.27,16.3366]
[1727814094927,6.9788,143.29,143.27,16.3366]
[1727814095101,57.7777,143.4,143.27,23.3164]
[1727814095102,20.0,143.33,143.27,23.3164]
[1727814095295,6.9778,143.32,143.27,23.3161]
[1727814095696,17.4377,143.37,143.27,23.3161]
[1727814095697,6.978,143.31,143.27,23.3161]
[1727814096212,6.978,143.31,143.27,16.3366]
[1727814096213,6.9779,143.31,143.27,16.3366]
[1727814096995,20.0,143.36,143.27,16.3366]
[1727814097608,6.9775,143.32,143.28,24.4269]
[1727814097795,20.0,143.36,143.28,17.4477]
[1727814097996,17.4339,143.4,143.3,17.4452]
[1727814098217,6.9753,143.37,143.32,6.9773]
[1727814098601,17.4339,143.4,143.31,6.9778]
[1727814098799,17.4339,143.4,143.27,16.3366]
[1727814098800,6.9768,143.34,143.27,33.7854]
[1727814099128,34.8677,143.4,143.27,33.7854]
[1727814099129,6.9774,143.32,143.28,6.9793]
[1727814099602,6.9774,143.32,143.27,33.7854]
[1727814100095,23.776884,143.39,143.25,1.0380556]
[1727814100301,20.0,143.36,143.25,1.0380556]
[1727814100609,23.776884,143.39,143.25,1.0380556]
[1727814100610,6.977,143.33,143.28,6.9792]
[1727814101215,17.4381,143.37,143.25,1.0380556]
[1727814101216,6.9788,143.29,143.25,1.0380556]
[1727814101406,6.9789,143.29,143.25,8.0187556]
[1727814101725,43.776884,143.35,143.25,1.0380556]
[1727814101916,6.978,143.31,143.27,17.4489]
[1727814102112,17.444,143.32,143.25,1.0380556]
[1727814102423,6.9792,143.29,143.25,1.0380556]
[1727814103420,6.9792,143.29,143.25,8.0187556]
[1727814103922,6.9793,143.28,143.25,1.0380556]
[1727814104098,6.9794,143.28,143.25,1.0380556]
[1727814104301,6.9795,143.28,143.25,1.0380556]
[1727814104609,6.9789,143.29,143.25,1.0380556]
[1727814104818,50.155184,143.35,143.25,1.0380556]
[1727814105121,6.9803,143.26,143.25,1.0380556]
[1727814105296,17.4527,143.25,143.17,15.336]
[1727814105499,6.9827,143.21,143.17,22.3204]
[1727814105725,6.9823,143.22,143.17,22.3205]
[1727814105928,6.9823,143.22,143.18,17.4593]
[1727814106149,6.9832,143.2,143.16,0.2074933]
[1727814107323,41.2818,143.26,143.17,17.4616]
[1727814107324,6.3783,143.26,143.17,17.4616]
[1727814107509,6.9822,143.22,143.16,0.2074933]
[1727814107817,6.9823,143.22,143.16,7.1925933]
[1727814108017,23.776884,143.25,143.16,0.2074933]
[1727814108195,6.9823,143.22,143.17,6.9846]
[1727814108401,6.9823,143.22,143.16,0.2074933]
[1727814108402,26.9832,143.2,143.16,0.2074933]
[1727814108608,50.760084,143.2,143.16,0.2074933]
[1727814109203,26.9832,143.2,143.16,0.2074933]
[1727814109623,50.760084,143.2,143.16,0.2074933]
[1727814110421,6.9847,143.17,143.16,0.2074933]
[1727814110626,30.761584,143.17,143.16,0.2074933]
[1727814110814,6.9847,143.17,143.16,0.2074933]
[1727814111615,30.761584,143.17,143.16,0.2074933]
[1727814111819,6.9867,143.13,143.11,0.8185366]
[1727814112053,37.4587,143.2,143.16,0.5220708]
[1727814112231,6.9847,143.17,143.16,0.5220708]
[1727814112420,50.761584,143.17,143.16,0.5220708]
[1727814112823,0.55905957,143.24,143.16,0.5220708]
[1727814113036,6.9871,143.12,143.11,0.8185366]
[1727814114918,30.763984,143.12,143.11,0.8185366]
[1727814115171,6.9871,143.12,143.11,0.8185366]
[1727814116025,30.763984,143.12,143.11,0.8185366]
[1727814117437,30.763984,143.12,143.11,3.66e-05]
[1727814117728,6.9905,143.06,143.01,6.9924]
[1727814117923,17.4706,143.1,143.01,6.9924]
[1727814117924,6.9905,143.05,143.01,6.9924]
[1727814118128,6.9919,143.03,143.0,0.27]
[1727814118324,6.9924,143.02,143.0,0.27]
[1727814118558,6.9916,143.03,143.0,0.27]
[1727814118759,17.474,143.07,143.0,0.27]
[1727814118760,6.992,143.02,143.0,0.27]
[1727814118952,17.474,143.07,143.0,0.27]
[1727814118953,17.474,143.07,143.0,0.3166088]
[1727814119252,23.776884,143.06,143.0,0.3166088]
[1727814119433,6.9924,143.02,143.0,0.3166088]
[1727814119633,6.9915,143.03,143.0,0.3166088]
[1727814119938,6.9916,143.03,143.0,0.3166088]
[1727814120170,23.776884,143.06,143.0,0.3166088]
[1727814120528,23.776884,143.04,143.0,0.3166088]
[1727814120758,23.776884,143.01,143.0,0.3166088]
[1727814120976,23.776884,143.02,143.0,0.3166088]
[1727814121163,6.9915,143.03,143.0,0.3166088]
[1727814121336,6.9904,143.06,143.0,0.3166088]
[1727814121532,20.0,143.06,143.0,0.3166088]
[1727814121735,23.776884,143.05,143.0,0.3166088]
[1727814122148,32.72137038,143.11,143.0,0.3166088]
[1727814122149,20.0,143.1,143.0,0.3166088]
[1727814122451,6.9906,143.05,143.0,0.3166088]
[1727814122625,20.0,143.1,143.0,0.3166088]
[1727814122826,21.21176398,143.1,143.0,0.3166088]
[1727814123258,6.9906,143.05,143.0,0.3166088]
[1727814123436,1.21176398,143.1,143.01,15.3782]
[1727814123642,7.64687038,143.11,143.01,15.3782]
[1727814123965,6.9881,143.1,143.04,24.468]
[1727814124269,7.45702086,143.15,143.07,17.4736]
[1727814124549,17.459,143.2,143.07,17.4736]
[1727814124550,31.44015032,143.2,143.07,17.4736]
[1727814124757,23.7053,143.2,143.07,17.4736]
[1727814124937,23.7053,143.2,143.1,17.4701]
[1727814124938,6.2463,143.2,143.1,17.4701]
[1727814125134,6.2463,143.2,143.06,17.4746]
[1727814125331,6.2463,143.2,143.05,6.9904]
[1727814125332,6.9877,143.11,143.05,6.9904]
[1727814125548,6.9871,143.13,143.06,6.99]
[1727814125751,6.9868,143.13,143.07,6.9894]
[1727814125967,6.9868,143.13,143.01,15.3782]
[1727814125968,6.9852,143.16,143.11,6.9871]
[1727814126175,17.4627,143.17,143.01,15.3782]
[1727814126472,6.9862,143.14,143.08,6.989]
[1727814126785,6.2463,143.2,143.1,17.4701]
[1727814127377,6.2463,143.2,143.12,6.987]
[1727814127672,67.8506,143.28,143.13,17.4663]
[1727814127673,6.9837,143.19,143.13,17.4663]
[1727814127880,23.8064,143.25,143.13,17.4663]
[1727814128248,6.9815,143.24,143.18,6.984]
[1727814128451,7.38339105,143.28,143.11,15.9261]
[1727814128677,6.9833,143.2,143.14,6.9861]
[1727814129152,6.9832,143.21,143.14,6.9859]
[1727814129371,6.9832,143.21,143.13,17.4656]
[1727814129372,6.9826,143.22,143.15,6.9856]
[1727814129567,8.59410588,143.28,143.18,17.4604]
[1727814129766,6.9797,143.28,143.22,6.9822]
[1727814129977,17.4446,143.32,143.2,17.4569]
[1727814129978,1.20942276,143.32,143.2,17.4569]
[1727814130149,17.4472,143.29,143.14,39.44272476]
[1727814130356,6.9808,143.25,143.19,6.9836]
[1727814130660,1.20942276,143.32,143.12,34.9337]
[1727814130661,1.20942276,143.32,143.21,33.1984]
[1727814130884,17.4431,143.33,143.24,6.9812]
[1727814131165,6.9784,143.3,143.21,15.7417]
[1727814131362,6.24,143.35,143.24,17.4531]
[1727814131668,6.24,143.35,143.25,6.9807]
[1727814131868,6.9779,143.31,143.25,6.9807]
[1727814132060,6.9784,143.3,143.24,24.4343]
[1727814132258,6.9789,143.29,143.24,24.4343]
[1727814132450,6.9789,143.29,143.21,15.7417]
[1727814132451,20.0,143.32,143.21,15.7417]
[1727814132670,20.0,143.34,143.21,15.7417]
[1727814132874,20.0,143.27,143.21,15.7417]
[1727814133096,20.0,143.27,143.18,17.4604]
[1727814133314,20.0,143.27,143.15,40.1862]
[1727814133476,6.9823,143.22,143.17,6.9846]
[1727814134187,6.9818,143.23,143.18,6.9841]
[1727814134392,17.4521,143.25,143.15,22.7224]
[1727814134690,23.776884,143.26,143.09,0.0466088]
[1727814134691,6.9856,143.16,143.11,24.4559]
[1727814134896,6.9857,143.15,143.11,17.4683]
[1727814135096,54.9095,143.23,143.1,15.7552]
[1727814135097,20.0,143.18,143.1,15.7552]
[1727814135305,23.776884,143.17,143.1,15.7552]
[1727814135470,20.0,143.18,143.1,15.7552]
[1727814135675,6.9858,143.15,143.1,22.7432]
[1727814135896,6.9851,143.17,143.12,6.9868]
[1727814136099,6.9849,143.17,143.1,33.2246]
[1727814136393,6.9851,143.16,143.12,6.987]
[1727814136777,23.776884,143.22,143.1,15.7552]
[1727814136778,23.776884,143.18,143.1,15.7552]
[1727814136994,6.9872,143.12,143.1,15.7552]
[1727814137194,23.776884,143.18,143.09,0.0466088]
[1727814137195,43.776884,143.15,143.09,0.0466088]
[1727814137486,6.9877,143.11,143.09,0.0466088]
[1727814137688,6.9881,143.1,143.09,0.0466088]
[1727814138405,78.706084,143.15,143.09,0.0466088]
[1727814138406,43.776884,143.15,143.09,0.0466088]
[1727814138593,6.987,143.13,143.09,0.0466088]
[1727814138774,43.776884,143.15,143.09,0.0466088]
[1727814138975,6.9876,143.11,143.09,0.0466088]
[1727814139398,43.776884,143.15,143.09,0.0466088]
[1727814139604,6.9876,143.12,143.09,0.0466088]
[1727814139818,43.776884,143.15,143.09,0.0466088]
[1727814139976,6.9881,143.1,143.09,0.0466088]
[1727814140677,17.4661,143.14,143.09,0.0466088]
[1727814140873,6.988,143.11,143.09,0.0466088]
[1727814141175,6.0227,143.26,143.09,0.0466088]
[1727814141397,6.9832,143.2,143.13,17.4657]
[1727814141699,6.0227,143.26,143.17,24.4453]
[1727814141700,6.9823,143.22,143.17,24.4453]
[1727814141996,17.4511,143.26,143.12,22.2263]
[1727814142201,17.4511,143.26,143.16,17.4619]
[1727814142398,17.4511,143.26,143.18,6.9838]
[1727814142399,6.9818,143.23,143.18,6.9838]
[1727814142600,6.0227,143.31,143.17,1.39650516]
[1727814142903,34.8924,143.3,143.15,64.05212782]
[1727814143112,6.9804,143.26,143.21,6.9826]